lending/lending_fUSD_20240410
["ID","MTS","AMOUNT","RATE_DAILY","PERIOD"]
[322091570,1712757082055,-164.0,0.00058517,28]
[322091571,1712757082064,-7424.22238693,0.0005852,120]
[322091572,1712757082074,-3061.2331573,0.0005852,120]
[322091573,1712757082083,-562.11224117,0.0005852,120]
[322091574,1712757082094,-1960.2125078,0.0005852,120]
[322091575,1712757082103,-151.91320181,0.00058538,77]
[322091576,1712757082113,-45622.27815436,0.00058549,5]
[322091577,1712757082375,-1691.715025,0.00028499,2]
[322091586,1712757479653,-312.79300987,0.00018795,2]
[322091587,1712757479811,-371.08179167,0.00018796,2]
[322091588,1712757479831,-169.76993253,0.00018798,2]
[322091589,1712757479852,-1292.70949063,0.000188,2]
[322091590,1712757479872,-2725.07500816,0.000188,2]
[322091591,1712757479892,-155.0,0.00018897,2]
[322091592,1712757479911,-300.7984,0.00018897,2]
[322091593,1712757479931,-1377.0,0.00018897,2]
[322091594,1712757479951,-549.49440134,0.00018898,2]
[322091595,1712757479970,-155.0,0.00018898,2]
[322091596,1712757479992,-3897.96647988,0.00018899,2]
[322091597,1712757480012,-3693.31148592,0.00018899,2]
[322091598,1712757509020,-364.49297746,0.00018898,2]
[322091599,1712757509045,-635.50702254,0.00018899,2]
[322091600,1712757563775,-45832.90031825,0.00018899,2]
[322091601,1712757563801,-2158.09968175,0.00018899,2]
[322091602,1712757747817,-391.82,0.00018754,2]
[322091603,1712757747841,-1163.43854163,0.00018798,2]
[322091604,1712757747863,-226.9723727,0.0001889,2]
[322091605,1712757747885,-217.76908567,0.00018897,2]
[322091606,1712757748384,-1726.44091433,0.00018897,2]
[322091607,1712757748406,-273.55908567,0.00018897,2]
[322091608,1712757748820,-2000.0,0.00018897,2]
[322091609,1712757749311,-2000.0,0.00018897,2]
[322091610,1712757749651,-2000.0,0.00018897,2]
[322091611,1712757750097,-2000.0,0.00018897,2]
[322091612,1712757750667,-2000.0,0.00018897,2]
[322091613,1712757750745,150.09,0.00016825,2]
[322091614,1712757751163,-2000.0,0.00018897,2]
[322091615,1712757752126,-187.8533615,0.000188,2]
[322091616,1712757752149,-1812.1466385,0.00018897,2]
[322091617,1712757752197,-2000.0,0.00018897,2]
[322091618,1712757766804,-3000.0,0.00018897,2]
[322091619,1712757879575,323.47,0.00018181,2]
[322091620,1712757888388,529.14732568,0.00018181,2]
[322091621,1712757888410,532.96267432,0.00018181,2]
[322091626,1712758077050,196.08,0.00018082,2]
[322091627,1712758077258,196.08,0.00018172,2]
[322091628,1712758084048,325.04470529,0.00018171,2]
[322091629,1712758085112,259.86,0.000188,4]
[322091700,1712758232498,-325.04470529,0.00018216,2]
[322091701,1712758232508,-194.00573824,0.00018217,2]
[322091703,1712758232516,-21.37894179,0.00018218,2]
[322091705,1712758232528,-142.81857658,0.00018218,2]
[322091707,1712758232538,-1280.43452841,0.00018315,2]
[322091713,1712758232924,-930.42110632,0.00018315,2]
[322091714,1712758232933,-153.9,0.00018318,2]
[322091715,1712758232943,-153.9,0.00018636,2]
[322091716,1712758232953,-150.7,0.00018663,2]
[322091717,1712758232962,-178.92,0.000187,2]
[322091718,1712758232972,-384.64907731,0.00018706,2]
[322091719,1712758232982,-150.0,0.00018797,2]
[322091720,1712758232992,-691.48187787,0.00018798,2]
[322091721,1712758233140,150.0,0.00018016,2]
[322091728,1712758237860,-1910.91067666,0.00018798,2]
[322091729,1712758237871,-164.19751836,0.00018798,2]
[322091730,1712758237880,-4949.75417045,0.00018798,2]
[322091731,1712758237890,-314.73178604,0.00018798,2]
[322091732,1712758237900,-175.05503407,0.000188,2]
[322091733,1712758237909,-187.94910268,0.000188,2]
[322091734,1712758237918,-499.99,0.000188,2]
[322091735,1712758237928,-170.75857643,0.000188,2]
[322091736,1712758237937,-860.07,0.00018887,3]
[322091737,1712758237946,-458.81289158,0.00018888,2]
[322091738,1712758237956,-155.0,0.00018895,2]
[322091739,1712758237965,-261.86179938,0.00018895,2]
[322091740,1712758237974,-155.0,0.00018895,2]
[322091741,1712758237983,-278.34132937,0.00018895,2]
[322091742,1712758237992,-14631.84091366,0.00018895,2]
[322091743,1712758238001,-8013.72620132,0.00018896,2]
[322091746,1712758238308,-3230.03114913,0.00018896,2]
[322091749,1712758238322,-12044.93965495,0.00018896,2]
[322091750,1712758238334,-22069.68996869,0.00018897,2]
[322091751,1712758238345,-31140.19999995,0.00018897,2]
[322091752,1712758238357,-472834.18543012,0.00018897,2]
[322091753,1712758238367,-319985.88267989,0.00018898,2]
[322091754,1712758238377,-462709.07553318,0.000189,2]
[322091755,1712758238387,-16168.50300573,0.000189,2]
[322091756,1712758238396,-153.9,0.00018954,2]
[322091757,1712758238405,-6026.86484103,0.00019,2]
[322091758,1712758238415,-2602.39255447,0.00019032,2]
[322091759,1712758238424,-4949.7541704,0.00019032,2]
[322091760,1712758238433,-16168.50300566,0.00019082,2]
[322091761,1712758238443,-314.73178604,0.00019098,2]
[322091762,1712758238452,-500.0,0.00019178,2]
[322091763,1712758238462,-500.0,0.00019178,2]
[322091764,1712758238471,-190.93211034,0.00019178,2]
[322091765,1712758238480,-500.0,0.00019178,2]
[322091766,1712758238489,-500.0,0.00019178,2]
[322091767,1712758238499,-579.73290683,0.00019178,2]
[322091768,1712758238508,-500.0,0.00019178,2]
[322091769,1712758238517,-500.0,0.00019178,2]
[322091770,1712758238526,-500.0,0.00019178,2]
[322091771,1712758238535,-500.0,0.00019178,2]
[322091772,1712758238544,-406.05768934,0.00019178,2]
[322091773,1712758238553,-203.90037026,0.00019178,2]
[322091774,1712758238563,-401.21935655,0.00019178,2]
[322091775,1712758238575,-445.78231435,0.00019178,2]
[322091776,1712758238584,-339.74022386,0.00019178,2]
[322091777,1712758238593,-154.54400784,0.00019178,2]
[322091778,1712758238603,-385.64827289,0.00019178,2]
[322091779,1712758238611,-500.0,0.00019178,2]
[322091780,1712758238621,-436.17849862,0.00019178,2]
[322091781,1712758238630,-412.37247893,0.00019178,2]
[322091782,1712758238640,-397.04,0.0001918,2]
[322091783,1712758238649,-397.04,0.0001918,2]
[322091784,1712758238659,-397.04,0.0001918,2]
[322091785,1712758238668,-397.04,0.0001918,2]
[322091786,1712758238677,-397.04,0.0001918,2]
[322091787,1712758238686,-397.04,0.0001918,2]
[322091788,1712758238695,-397.04,0.0001918,2]
[322091789,1712758238704,-3350.06285352,0.000192,2]
[322091790,1712758238713,-436.87,0.00019235,2]
[322091791,1712758238722,-436.87,0.0001924,2]
[322091792,1712758238731,-436.87,0.00019245,2]
[322091793,1712758238740,-436.87,0.0001925,2]
[322091794,1712758238750,-436.87,0.00019255,2]
[322091795,1712758238759,-436.87,0.0001926,2]
[322091796,1712758238768,-16168.50300566,0.00019264,2]
[322091797,1712758238777,-2602.39255447,0.00019265,2]
[322091798,1712758238786,-4949.7541704,0.00019265,2]
[322091799,1712758238795,-436.87,0.00019265,2]
[322091800,1712758238804,-436.87,0.00019271,2]
[322091801,1712758238813,-153.9,0.00019272,2]
[322091802,1712758238823,-436.87,0.00019276,2]
[322091803,1712758238832,-436.87,0.00019281,2]
[322091804,1712758238842,-436.87,0.00019286,2]
[322091805,1712758238851,-436.87,0.00019291,2]
[322091806,1712758238860,-436.87,0.00019296,2]
[322091807,1712758238869,-436.87,0.00019301,2]
[322091808,1712758238879,-436.87,0.00019306,2]
[322091809,1712758238888,-436.87,0.00019311,2]
[322091810,1712758238897,-436.87,0.00019316,2]
[322091811,1712758238908,-436.87,0.00019321,2]
[322091812,1712758238917,-436.87,0.00019326,2]
[322091813,1712758238926,-436.87,0.00019331,2]
[322091814,1712758238936,-314.73178604,0.00019399,2]
[322091815,1712758238945,-16168.50300566,0.00019445,2]
[322091816,1712758238954,-2602.39255447,0.00019499,2]
[322091817,1712758238963,-4949.7541704,0.00019499,2]
[322091818,1712758238973,-1000.0,0.0001954,2]
[322091819,1712758238982,-16168.50300566,0.00019627,2]
[322091820,1712758238991,-314.73178604,0.00019699,2]
[322091821,1712758239000,-2602.39255447,0.00019732,2]
[322091822,1712758239010,-4949.7541704,0.00019732,2]
[322091823,1712758239019,-1338.80263955,0.00019758,2]
[322091824,1712758239029,-16168.50300566,0.00019809,2]
[322091825,1712758239038,-187.94910268,0.0001985,2]
[322091826,1712758239047,-167.48,0.00019856,2]
[322091827,1712758239056,-49541.1791,0.00019899,2]
[322091828,1712758239068,-153.37502266,0.000199,2]
[322091829,1712758239076,-153.3750224,0.000199,2]
[322091830,1712758239086,-153.3750224,0.000199,2]
[322091831,1712758239095,-153.3750224,0.000199,2]
[322091832,1712758239104,-153.3750224,0.000199,2]
[322091833,1712758239113,-153.3750224,0.000199,2]
[322091834,1712758239122,-153.3750224,0.000199,2]
[322091835,1712758239131,-153.3750224,0.000199,2]
[322091836,1712758239141,-153.3750224,0.000199,2]
[322091837,1712758239150,-153.3750224,0.000199,2]
[322091838,1712758239159,-153.3750224,0.000199,2]
[322091839,1712758239168,-153.3750224,0.000199,2]
[322091840,1712758239178,-153.3750224,0.000199,2]
[322091841,1712758239187,-153.3750224,0.000199,2]
[322091842,1712758239200,-153.3750224,0.000199,2]
[322091843,1712758239209,-153.3750224,0.000199,2]
[322091844,1712758239218,-162.88,0.00019944,2]
[322091845,1712758239229,-153.3750224,0.00019959,2]
[322091846,1712758239240,-2602.39255447,0.00019966,2]
[322091847,1712758239249,-4949.7541704,0.00019966,2]
[322091848,1712758239258,-397.04,0.0001999,2]
[322091849,1712758239269,-16168.50300566,0.00019991,2]
[322091850,1712758239280,-20172.57682475,0.0002,2]
[322091851,1712758239290,-2443.33880773,0.0002,2]
[322091852,1712758239300,-667.44100789,0.0002,2]
[322091853,1712758239311,-751.33037442,0.0002,2]
[322091854,1712758239325,-155.0,0.0002,2]
[322091855,1712758239336,-858.2769229,0.0002,2]
[322091856,1712758239346,-6209.85493494,0.0002,2]
[322091857,1712758239355,-640.46092048,0.0002,2]
[322091858,1712758239366,-56628.28416349,0.0002,2]
[322091859,1712758239376,-153.3750224,0.00020031,2]
[322091860,1712758239386,-153.3750224,0.00020103,2]
[322091861,1712758239395,-16168.50300566,0.00020173,2]
[322091862,1712758239404,-153.3750224,0.00020176,2]
[322091863,1712758239413,-520.51,0.00020192,2]
[322091864,1712758239422,-2602.39255447,0.00020199,2]
[322091865,1712758239431,-153.3750224,0.00020248,2]
[322091866,1712758239440,-245.48216277,0.00020299,2]
[322091867,1712758239449,-153.3750224,0.00020321,2]
[322091868,1712758239458,-16168.50300566,0.00020355,2]
[322091869,1712758239468,-153.3750224,0.00020393,2]
[322091870,1712758239477,-1670.225866,0.000204,2]
[322091872,1712758239486,-152.87406506,0.000204,2]
[322091873,1712758239495,-5237.99014585,0.000204,2]
[322091874,1712758239504,-2398.8884397,0.000204,2]
[322091875,1712758239513,-2602.39255447,0.00020433,2]
[322091876,1712758239522,-153.3750224,0.00020466,2]
[322091877,1712758239531,-458.81289158,0.0002049,2]
[322091878,1712758239541,-458.81289158,0.0002049,2]
[322091879,1712758239550,-397.04,0.0002049,2]
[322091880,1712758239559,-397.04,0.0002049,2]
[322091881,1712758239570,-302.75855502,0.000205,2]
[322091882,1712758239579,-1529283.54028931,0.000205,2]
[322091883,1712758239589,-155.0,0.000205,2]
[322091884,1712758239599,-16168.50300566,0.00020536,2]
[322091885,1712758239608,-153.3750224,0.00020538,2]
[322091886,1712758239617,-550.0,0.00020547,2]
[322091887,1712758239626,-500.0,0.00020547,2]
[322091888,1712758239635,-155.21992077,0.0002059,2]
[322091889,1712758239644,-245.48216277,0.000206,2]
[322091890,1712758239654,-153.3750224,0.0002061,2]
[322091892,1712758239663,-337.52854433,0.0002065,3]
[322091893,1712758239672,-1670.22586598,0.0002065,2]
[322091894,1712758239681,-5237.99014583,0.0002065,2]
[322091895,1712758239690,-2398.88843968,0.0002065,2]
[322091896,1712758239699,-2602.39255447,0.00020666,2]
[322091897,1712758239707,-210.0,0.00020677,2]
[322091898,1712758239717,-153.3750224,0.00020683,2]
[322091899,1712758239726,-117635.086,0.000207,2]
[322091900,1712758239736,-1000.0,0.000207,2]
[322091901,1712758239745,-500.0,0.000207,2]
[322091902,1712758239754,-807.38160538,0.000207,2]
[322091903,1712758239764,-807.38160538,0.000207,2]
[322091904,1712758239773,-807.38160538,0.000207,2]
[322091905,1712758239782,-807.38160538,0.000207,2]
[322091906,1712758239791,-807.38160538,0.000207,2]
[322091907,1712758239800,-807.38160538,0.000207,2]
[322091908,1712758239809,-807.38160538,0.000207,2]
[322091909,1712758239820,-807.38160538,0.000207,2]
[322091910,1712758239830,-807.38160538,0.000207,2]
[322091911,1712758239840,-807.38160538,0.000207,2]
[322091912,1712758239849,-807.38160538,0.000207,2]
[322091913,1712758239858,-807.38160538,0.000207,2]
[322091914,1712758239867,-807.38160538,0.000207,2]
[322091915,1712758239877,-807.38160538,0.000207,2]
[322091916,1712758239887,-807.38160538,0.000207,2]
[322091917,1712758239897,-807.38160538,0.000207,2]
[322091918,1712758239907,-807.38160538,0.000207,2]
[322091919,1712758239916,-807.38160538,0.000207,2]
[322091920,1712758239925,-807.38160538,0.000207,2]
[322091921,1712758239935,-807.38160538,0.000207,2]
[322091922,1712758239945,-807.38160538,0.000207,2]
[322091923,1712758239955,-807.38160538,0.000207,2]
[322091924,1712758239965,-807.38160538,0.000207,2]
[322091925,1712758239974,-807.38160538,0.000207,2]
[322091926,1712758239984,-807.38160538,0.000207,2]
[322091927,1712758239994,-807.38160538,0.000207,2]
[322091928,1712758240004,-807.38160538,0.000207,2]
[322091929,1712758240014,-807.38160538,0.000207,2]
[322091930,1712758240024,-807.38160538,0.000207,2]
[322091931,1712758240035,-807.38160538,0.000207,2]
[322091932,1712758240046,-807.38160538,0.000207,2]
[322091933,1712758240056,-807.38160538,0.000207,2]
[322091934,1712758240068,-807.38160538,0.000207,2]
[322091935,1712758240082,-807.38160538,0.000207,2]
[322091936,1712758240094,-807.38160538,0.000207,2]
[322091937,1712758240104,-807.38160538,0.000207,2]
[322091938,1712758240114,-807.38160538,0.000207,2]
[322091939,1712758240124,-807.38160538,0.000207,2]
[322091940,1712758240133,-807.38160538,0.000207,2]
[322091941,1712758240143,-807.38160538,0.000207,2]
[322091942,1712758240153,-807.38160538,0.000207,2]
[322091943,1712758240163,-807.38160538,0.000207,2]
[322091944,1712758240173,-807.38160538,0.000207,2]
[322091945,1712758240187,-807.38160538,0.000207,2]
[322091946,1712758240196,-807.38160538,0.000207,2]
[322091947,1712758240205,-807.38160538,0.000207,2]
[322091948,1712758240215,-807.38160538,0.000207,2]
[322091949,1712758240226,-807.38160538,0.000207,2]
[322091950,1712758240235,-807.38160538,0.000207,2]
[322091951,1712758240244,-807.38160538,0.000207,2]
[322091952,1712758240254,-16168.50300566,0.00020718,2]
[322091953,1712758240263,-153.3750224,0.00020755,2]
[322091954,1712758240272,-337.52854433,0.00020775,3]
[322091955,1712758240284,-263.23157217,0.00020798,2]
[322091956,1712758240294,-207.28883958,0.00020798,2]
[322091957,1712758240304,-842.0277,0.00020798,2]
[322091958,1712758240314,-299.33879216,0.00020798,2]
[322091959,1712758240327,-18753.96,0.00020799,2]
[322091960,1712758240337,-389952.82412244,0.000208,2]
[322091961,1712758240347,-153.3750224,0.00020828,2]
[322091962,1712758240356,-39959.6783,0.000209,2]
[322091963,1712758240366,-175.05503406,0.000209,2]
[322091964,1712758240376,-16168.50300566,0.000209,2]
[322091966,1712758240385,-153.3750224,0.000209,2]
[322091968,1712758240395,-245.48216277,0.000209,2]
[322091970,1712758240404,-187.94910268,0.000209,2]
[322091972,1712758240413,-2602.39255447,0.000209,2]
[322091976,1712758240423,-337.52854433,0.000209,3]
[322091978,1712758240432,-155.70562605,0.000209,2]
[322091979,1712758240441,-1670.22586598,0.000209,2]
[322091980,1712758240451,-155.70562604,0.000209,2]
[322091981,1712758240461,-155.70562604,0.000209,2]
[322091982,1712758240470,-155.70562604,0.000209,2]
[322091983,1712758240480,-155.70562604,0.000209,2]
[322091984,1712758240489,-5237.99014583,0.000209,2]
[322091985,1712758240500,-155.70562604,0.000209,2]
[322091986,1712758240509,-155.70562604,0.000209,2]
[322091987,1712758240519,-155.70562604,0.000209,2]
[322091988,1712758240529,-155.70562604,0.000209,2]
[322091989,1712758240538,-155.70562604,0.000209,2]
[322091990,1712758240548,-155.70562604,0.000209,2]
[322091991,1712758240559,-155.70562604,0.000209,2]
[322091992,1712758240571,-155.70562604,0.000209,2]
[322091993,1712758240580,-155.70562604,0.000209,2]
[322091994,1712758240589,-155.70562604,0.000209,2]
[322091995,1712758240598,-2398.88843968,0.000209,2]
[322091996,1712758240608,-379.60488076,0.000209,2]
[322091997,1712758240617,-1062.11,0.00020921,2]
[322091998,1712758240627,-8000.0,0.00020951,2]
[322091999,1712758240636,-3367.56,0.00020951,2]
[322092000,1712758240646,-15607.82,0.00020951,2]
[322092001,1712758240655,-618.05751897,0.00020999,2]
[322092002,1712758240665,-221.27014755,0.00020999,2]
[322092003,1712758240674,-5680.20530654,0.00020999,2]
[322092004,1712758240683,-714.96210186,0.00021,2]
[322092005,1712758240692,-10801730.46236799,0.00021,2]
[322092006,1712758240707,-17170889.47204931,0.00021,2]
[322092007,1712758240717,-155.0,0.00021,2]
[322092008,1712758240726,-899390.59563959,0.00021,2]
[322092009,1712758240738,-1963.46120781,0.00021,2]
[322092010,1712758240762,-1763.85743728,0.00020199,2]
[322092011,1712758240773,-3185.89673312,0.00020199,2]
[322092012,1712758240783,-1242.78004381,0.00021,2]
[322092013,1712758240794,-332.02,0.00021,2]
[322092020,1712758242886,-314.73178604,0.00019999,2]
[322092021,1712758242895,-3291.75487993,0.00021,2]
[322092022,1712758242906,-10239.9,0.00021,2]
[322092023,1712758243185,-1088.53017167,0.00020198,2]
[322092024,1712758243197,-49812.33487982,0.00021,2]
[322092025,1712758243208,-362710.16218527,0.00021,2]
[322092026,1712758243246,-50969.95936797,0.00021,2]
[322092027,1712758243306,-270.15551615,0.00021,2]
[322092063,1712758246004,-520.51,0.00020192,2]
[322092064,1712758246014,-2354.77756212,0.00020198,2]
[322092065,1712758246023,-4949.7541704,0.00020433,2]
[322092066,1712758246032,-18715.68063531,0.00021,2]
[322092067,1712758246044,-3524.91145,0.00021,2]
[322092068,1712758246055,-665.46818578,0.00021,2]
[322092069,1712758246066,-751437.99999981,0.00021,2]
[322092070,1712758246077,-862.55000001,0.00021,2]
[322092071,1712758246121,-136057.82537642,0.00021,2]
[322092072,1712758246182,-273.58370644,0.00021,2]
[322092095,1712758384138,1300.0,0.00020989,15]
[322092096,1712758384597,1300.0,0.00020979,15]
[322092097,1712758385055,1300.0,0.00020969,15]
[322092098,1712758385515,1300.0,0.0002099,15]
[322092099,1712758385977,1300.0,0.0002098,15]
[322092100,1712758386449,124.64394011,0.0002097,15]
[322092101,1712758386478,1175.35605989,0.0002097,15]
[322092102,1712758386932,1300.0,0.0002099,15]
[322092103,1712758387388,1300.0,0.0002098,15]
[322092146,1712758503166,1335.0,0.00020989,15]
[322092147,1712758503646,1335.0,0.00020979,15]
[322092148,1712758504373,1335.0,0.00020969,15]
[322092150,1712758505690,1335.0,0.00020989,15]
[322092151,1712758505857,260.0,0.00020989,15]
[322092152,1712758506002,1335.0,0.00020979,15]
[322092153,1712758506329,260.0,0.00020979,15]
[322092154,1712758506483,1335.0,0.00020969,15]
[322092156,1712758506889,260.0,0.00020969,15]
[322092157,1712758506963,1335.0,0.00020989,15]
[322092158,1712758507556,1335.0,0.00020979,15]
[322092159,1712758507660,260.0,0.00020989,15]
[322092160,1712758508205,260.0,0.00020979,15]
[322092161,1712758508880,260.0,0.00020969,15]
[322092162,1712758509540,260.0,0.00020989,15]
[322092163,1712758510197,260.0,0.00020979,15]
[322092174,1712758625948,150.5,0.00020987,15]
[322092175,1712758626566,150.5,0.00020977,15]
[322092176,1712758627083,224.0,0.00020967,15]
[322092211,1712758749682,267.0,0.00020987,15]
[322092212,1712758750501,267.0,0.00020977,15]
[322092213,1712758750970,267.0,0.00020967,15]
[322092214,1712758751592,267.0,0.00020989,15]
[322092216,1712758752112,267.0,0.00020979,15]
[322092217,1712758752604,267.0,0.00020969,15]
[322092218,1712758753089,267.0,0.00020989,15]
[322092219,1712758753568,267.0,0.00020979,15]
[322092229,1712758805067,152.51,0.00017838,2]
[322092247,1712758986594,150.5,0.00020987,15]
[322092248,1712758987332,150.5,0.00020977,15]
[322092249,1712758987910,-155.0,0.00018697,2]
[322092250,1712758987930,-2355.22722973,0.00018697,2]
[322092251,1712758987950,-1489.77277027,0.00018698,2]
[322092252,1712758988022,236.0,0.00020967,15]
[322092268,1712759095594,-700.0,0.00018697,2]
[322092339,1712759175008,-2000.0,0.00019492,2]
[322092340,1712759175505,-2000.0,0.00019492,2]
[322092341,1712759176034,-2000.0,0.00019492,2]
[322092342,1712759176591,-2000.0,0.00019492,2]
[322092343,1712759177093,-2000.0,0.00019492,2]
[322092344,1712759177650,-2000.0,0.00019492,2]
[322092345,1712759178151,-2000.0,0.00019492,2]
[322092346,1712759178745,-2000.0,0.00019492,2]
[322092347,1712759179301,-2000.0,0.00019492,2]
[322092348,1712759179930,-2000.0,0.00019492,2]
[322092360,1712759271289,152.51,0.00017348,2]
[322092361,1712759392474,-210.17511032,0.00018717,2]
[322092362,1712759392496,-19399.66641599,0.00018717,2]
[322092363,1712759392519,-155.0,0.00018718,2]
[322092364,1712759392541,-492.45,0.00019165,2]
[322092365,1712759392561,-2742.70847369,0.00019388,2]
[322092366,1712759409384,435.33225777,0.00017348,2]
[322092394,1712759432036,-455.0,0.00019228,2]
[322092395,1712759432045,-150.0,0.00019387,2]
[322092396,1712759432055,-15486.459586,0.00019388,2]
[322092397,1712759432065,-2210.85563473,0.00019388,2]
[322092398,1712759432074,-365.12124712,0.00019388,2]
[322092399,1712759432084,-719.0,0.00019389,2]
[322092400,1712759432093,-4790.617,0.00019391,2]
[322092401,1712759432102,-165.01791129,0.00019392,2]
[322092402,1712759432112,-419.82,0.00019463,2]
[322092403,1712759432121,-3890.0,0.00019492,2]
[322092404,1712759432131,-1056.21147422,0.00019492,2]
[322092405,1712759432140,-1000.0,0.00019572,2]
[322092406,1712759432148,-163.99,0.00019574,2]
[322092407,1712759432158,-871.3534068,0.000196,2]
[322092408,1712759432167,-407.97107678,0.000196,2]
[322092409,1712759432177,-540.44,0.00019605,2]
[322092410,1712759432186,-2981.19815843,0.00019792,2]
[322092411,1712759432196,-196.25,0.00019812,2]
[322092412,1712759432206,-196.01,0.00019928,2]
[322092413,1712759432216,-196.01,0.00019977,2]
[322092414,1712759432226,-1000.0,0.00019999,2]
[322092415,1712759432235,-1300.0,0.0002,2]
[322092416,1712759432245,-20172.57682475,0.0002,2]
[322092417,1712759432254,-155.0,0.0002,2]
[322092418,1712759432264,-640.46092048,0.0002002,2]
[322092419,1712759432273,-196.01,0.00020027,2]
[322092420,1712759432282,-155.25,0.00020048,2]
[322092421,1712759432292,-520.51,0.000201,2]
[322092422,1712759432301,-297.11,0.000201,2]
[322092423,1712759432310,-2981.19815843,0.00020134,2]
[322092424,1712759432320,-205.48422814,0.00020298,2]
[322092425,1712759432329,-298.82889945,0.00020298,2]
[322092426,1712759432338,-2981.19815843,0.00020413,2]
[322092427,1712759432348,-152.51,0.00020421,2]
[322092428,1712759432357,-213.53,0.00020486,2]
[322092430,1712759432366,-155.0,0.00020546,2]
[322092432,1712759432375,-501.0,0.00020547,2]
[322092434,1712759432385,-2981.19815843,0.00020693,2]
[322092436,1712759432394,-162.82877541,0.000207,2]
[322092438,1712759432403,-2670.18844799,0.000207,2]
[322092440,1712759432412,-23918.06266215,0.0002079,2]
[322092443,1712759432421,-537.88379237,0.00020798,2]
[322092446,1712759432431,-159.36321711,0.00020798,2]
[322092450,1712759432444,-155.0,0.00020798,2]
[322092452,1712759432454,-640.86113825,0.00020798,2]
[322092454,1712759432463,-210.81241358,0.00020798,2]
[322092456,1712759432473,-256.37425623,0.00020799,2]
[322092458,1712759432484,-225.62746099,0.00020799,2]
[322092460,1712759432494,-16971.704,0.000208,2]
[322092461,1712759432505,-100000.0,0.000208,2]
[322092463,1712759432514,-5720.7986,0.000208,2]
[322092465,1712759432529,-312.73380543,0.000208,2]
[322092466,1712759432540,-162.82877539,0.00020857,2]
[322092468,1712759432549,-257.86,0.00020887,2]
[322092470,1712759432559,-14819.441,0.00020897,2]
[322092472,1712759432569,-516.8227,0.00020897,2]
[322092473,1712759432579,-430.1307,0.00020897,2]
[322092475,1712759432589,-625.0,0.00020897,2]
[322092477,1712759432601,-625.0,0.00020897,2]
[322092478,1712759432611,-7500.0,0.00020897,2]
[322092479,1712759432620,-180.28720509,0.00020897,2]
[322092480,1712759432631,-185.64350061,0.00020897,2]
[322092481,1712759432642,-176.73267881,0.00020897,2]
[322092482,1712759432652,-3956.11626814,0.00020898,2]
[322092483,1712759432663,-152.47492902,0.00020898,2]
[322092484,1712759432674,-191.30403722,0.00020898,2]
[322092485,1712759432683,-191.30403722,0.00020899,2]
[322092486,1712759432695,-498.42117735,0.00020899,2]
[322092487,1712759432704,-171778.8309,0.000209,2]
[322092488,1712759432713,-176.73267881,0.000209,2]
[322092489,1712759432724,-191.30403722,0.000209,2]
[322092490,1712759432734,-196.75920641,0.000209,2]
[322092491,1712759432744,-675.05708868,0.000209,3]
[322092492,1712759432755,-5151.19839723,0.000209,2]
[322092493,1712759432765,-652.96134633,0.000209,3]
[322092494,1712759432775,-479.32903155,0.000209,2]
[322092495,1712759432785,-228.83369682,0.000209,2]
[322092496,1712759432795,-781.90141093,0.000209,2]
[322092497,1712759432804,-257.86,0.00020977,2]
[322092498,1712759432813,-257.86,0.00020987,2]
[322092499,1712759432823,-257.86,0.00020987,2]
[322092500,1712759432834,-257.86,0.00020987,2]
[322092501,1712759432845,-257.86,0.00020987,2]
[322092502,1712759432856,-257.86,0.00020987,2]
[322092503,1712759432866,-257.86,0.00020987,2]
[322092504,1712759432876,-257.86,0.00020987,2]
[322092505,1712759432886,-257.86,0.00020987,2]